bitfinex-derivatives/quotes_BNBF0:USTF0_20250425
["timestamp","ask_amount","ask_price","bid_price","bid_amount"]
[1745548128355,0.29000604,601.92,599.15,1.092]
[1745548128650,0.29000604,601.92,599.16,0.30621218]
[1745548129256,1.25428612,601.65,599.16,0.30621218]
[1745548129857,1.25428612,601.65,599.15,1.092]
[1745548130057,1.25428612,601.65,599.16,0.3062178]
[1745548130459,0.29003988,601.64,599.16,0.3062178]
[1745548131060,1.25428612,601.53,599.16,0.3062178]
[1745548132959,1.25428612,601.53,599.15,1.092]
[1745548133262,1.25428612,601.53,599.16,0.30621479]
[1745548133558,1.25428612,601.53,599.15,1.092]
[1745548134260,1.25428612,601.54,599.15,1.092]
[1745548136361,0.29007977,601.53,599.15,1.092]
[1745548138162,0.29007977,601.53,599.16,0.30623397]
[1745548138763,0.29007977,601.53,599.15,0.30623397]
[1745548139064,1.25428612,601.54,599.15,0.30623397]
[1745548140065,1.25428612,601.97,599.15,0.30623397]
[1745548140459,0.2900568,601.53,599.15,0.30623397]
[1745548140763,1.25428612,601.97,599.15,0.30623397]
[1745548141665,1.25428612,601.97,599.14,1.169]
[1745548141866,1.25428612,601.97,599.15,1.88619718]
[1745548142065,1.25428612,601.97,599.16,0.30619718]
[1745548142266,0.28999517,601.96,599.16,0.30619718]
[1745548142662,1.25428612,601.9,599.16,0.30619718]
[1745548144762,1.25428612,601.9,599.15,1.58]
[1745548144961,1.25428612,601.9,599.16,0.30619213]
[1745548145468,0.29000242,601.89,599.16,0.30619213]
[1745548145668,1.25428612,601.85,599.16,0.30619213]
[1745548147966,1.25428612,601.85,599.17,0.30619031]
[1745548148167,1.25428612,601.85,599.16,0.30619031]
[1745548148364,0.29000846,601.84,599.17,0.30619031]
[1745548148560,0.29000846,601.84,599.15,1.58]
[1745548148561,1.25428612,601.29,599.16,1.78019031]
[1745548148765,1.25428612,601.29,599.17,0.30619031]
[1745548149166,1.25428612,601.29,599.18,0.30619031]
[1745548149367,1.25428612,601.29,599.16,1.474]
[1745548149563,1.25428612,601.29,599.17,0.30618567]
[1745548149862,1.25428612,601.29,599.18,0.30618567]
[1745548150066,1.25428612,601.29,599.19,0.30618567]
[1745548150266,1.25428612,601.29,599.18,0.30618567]
[1745548150566,1.25428612,601.29,599.19,0.30618567]
[1745548150763,1.25428612,601.29,599.18,0.30618567]
[1745548150962,1.25428612,601.29,599.31,1.05852008]
[1745548151166,1.25428612,601.08,599.32,0.30618567]
[1745548152468,1.25428612,601.08,599.31,1.05852008]
[1745548152667,1.25428612,601.08,599.32,0.30615929]
[1745548154270,1.25428612,601.07,599.38,1.05852008]
[1745548154469,1.25428612,601.07,599.39,0.30615929]
[1745548155570,1.25428612,601.07,599.38,1.05852008]
[1745548155767,1.25428612,601.07,599.39,0.30619798]
[1745548156570,0.2900568,601.28,599.39,0.30619798]
[1745548156571,1.25428612,601.02,599.39,0.30619798]
[1745548156769,1.25428612,601.02,599.3,0.30619798]
[1745548156970,1.25428612,601.02,599.31,0.30619798]
[1745548157171,1.25428612,601.02,599.3,0.30619798]
[1745548157366,0.29009186,601.01,599.31,0.30619798]
[1745548157567,0.29009186,601.01,599.3,0.30619798]
[1745548157771,0.29009186,601.01,599.31,0.30619798]
[1745548157965,0.29009186,601.01,599.32,0.30619798]
[1745548158171,0.29009186,601.01,599.33,0.30619798]
[1745548158369,0.29009186,601.01,599.3,0.30619798]
[1745548158669,0.29009186,601.01,599.31,0.30619798]
[1745548158868,0.29009186,601.01,599.32,0.30619798]
[1745548159063,0.29009186,601.01,599.3,0.30619798]
[1745548159270,0.29009186,601.01,599.31,0.30619798]
[1745548159464,0.29009186,601.01,599.3,0.30619798]
[1745548159768,1.54437798,601.01,599.3,0.30619798]
[1745548160071,1.25428612,601.01,599.3,0.30619798]
[1745548160370,0.29009307,601.0,599.3,0.30619798]
[1745548161767,0.29009307,601.0,599.29,1.05852008]
[1745548162065,0.29009307,601.0,599.3,0.30618961]
[1745548162667,0.29009307,601.0,599.35,1.05852008]
[1745548163072,1.25428612,601.07,599.35,1.05852008]
[1745548163269,0.29012935,600.99,599.35,1.05852008]
[1745548163472,1.25428612,601.07,599.35,1.05852008]
[1745548164073,1.25428612,601.07,599.36,1.212]
[1745548164974,1.25428612,601.07,599.37,1.531]
[1745548165474,0.29009307,601.06,599.37,1.531]
[1745548165874,1.25428612,601.58,599.37,1.531]
[1745548168075,1.25428612,601.34,599.37,1.531]
[1745548168777,1.25428612,601.34,599.38,0.30621415]
[1745548169379,0.29005559,601.33,599.38,0.30621415]
[1745548170979,1.25428612,601.27,599.38,0.30621415]
[1745548172381,0.29005439,601.26,599.39,1.577]
[1745548172575,0.29005439,601.26,599.4,0.30621415]
[1745548173681,1.25428612,600.96,599.4,0.30621415]
[1745548174680,1.25428612,600.96,599.39,1.577]
[1745548174879,1.25428612,600.96,599.4,0.30618239]
[1745548175381,0.29008703,600.95,599.4,0.30618239]
[1745548176682,1.25428612,600.88,599.4,0.30618239]
[1745548177382,1.25428612,600.88,599.39,1.577]
[1745548177581,1.25428612,600.88,599.4,0.30616143]
[1745548178482,0.29007494,600.87,599.4,0.30616143]
[1745548178881,0.29007494,600.87,599.39,1.577]
[1745548179078,0.29007494,600.87,599.4,0.30615875]
[1745548181080,1.25428612,601.33,599.4,0.30615875]
[1745548181584,0.29002054,601.32,599.4,0.30615875]
[1745548182081,0.29002054,601.32,599.4,0.978]
[1745548182285,0.29002054,601.32,599.41,0.30615653]
[1745548184087,1.25428612,601.48,599.41,0.30615653]
[1745548184388,0.29000121,601.31,599.41,0.30615653]
[1745548184589,1.25428612,601.48,599.41,0.30615653]
[1745548185088,1.25428612,601.48,599.4,0.978]
[1745548185384,0.29000121,601.47,599.41,0.30615774]
[1745548186691,0.29000121,601.47,599.4,0.978]
[1745548186892,0.29000121,601.47,599.41,0.30615692]
[1745548187085,1.25428612,601.48,599.41,0.30615692]
[1745548187491,0.28998913,601.46,599.41,0.30615692]
[1745548188193,1.25428612,601.39,599.41,0.30615692]
[1745548188393,1.25428612,601.39,599.42,0.3061507]
[1745548188593,1.25428612,601.39,599.43,0.3061507]
[1745548188794,1.25428612,601.39,599.41,0.3061507]
[1745548189093,1.25428612,601.39,599.42,0.3061507]
[1745548189295,1.25428612,601.39,599.41,0.3061507]
[1745548189493,1.25428612,601.39,599.42,0.3061507]
[1745548189794,1.25428612,601.39,599.43,0.3061507]
[1745548189989,1.25428612,601.39,599.41,0.3061507]
[1745548190189,1.25428612,601.39,599.42,0.3061507]
[1745548190394,1.25428612,601.26,599.41,0.3061507]
[1745548190587,1.25428612,601.26,599.42,0.3061507]
[1745548190789,1.25428612,601.26,599.43,0.3061507]
[1745548190994,1.25428612,601.26,599.44,0.3061507]
[1745548191294,1.25428612,601.26,599.45,0.3061507]
[1745548191595,1.25428612,601.26,599.46,0.3061507]
[1745548191789,1.25428612,601.26,599.47,0.3061507]
[1745548191992,1.25428612,601.26,599.33,0.3061507]
[1745548192193,1.25428612,601.26,599.34,0.3061507]
[1745548192494,1.25428612,601.26,599.33,0.3061507]
[1745548192690,1.25428612,601.26,599.34,0.3061507]
[1745548192892,1.25428612,601.19,599.33,1.05852008]
[1745548193093,1.25428612,601.19,599.34,0.30616657]
[1745548194393,0.29004472,601.18,599.34,0.30616657]
[1745548194694,0.29004472,601.18,599.35,0.3061705]
[1745548194893,0.29004472,601.18,599.36,0.3061705]
[1745548195094,0.29004472,601.18,599.37,0.3061705]
[1745548195394,0.29004472,601.18,599.19,0.29004472]
[1745548195395,1.25428612,601.16,599.38,0.3061705]
[1745548195592,1.25428612,601.16,599.35,0.3061705]
[1745548196091,1.25428612,601.16,599.34,1.05852008]
[1745548196391,1.25428612,601.16,599.35,0.30617233]
[1745548196590,0.29004713,601.15,599.35,0.30617233]
[1745548197592,0.29004713,601.15,599.34,1.05852008]
[1745548197789,0.29004713,601.15,599.35,0.30615966]
[1745548198695,0.29004713,601.15,599.36,0.983]
[1745548198895,0.29004713,601.15,599.37,1.31115966]
[1745548199195,1.25428612,601.16,599.38,1.162]
[1745548199397,1.25428612,601.19,599.39,0.30615966]
[1745548199596,0.29004351,601.14,599.39,0.30615966]
[1745548200697,0.29004351,601.14,599.38,2.698]
[1745548200896,0.29004351,601.14,599.39,0.30615576]
[1745548201793,1.25428612,601.19,599.39,0.30615576]
[1745548201999,1.25428612,601.16,599.39,0.30615576]
[1745548202197,0.29003867,601.13,599.39,0.30615576]
[1745548204097,1.25428612,601.12,599.39,0.30615576]
[1745548204993,1.25428612,601.12,599.38,2.698]
[1745548205197,1.25428612,601.12,599.39,0.30615789]
[1745548205393,0.29004713,601.11,599.39,0.30615789]
[1745548208100,1.25428612,601.27,599.38,2.698]
[1745548208298,1.25428612,601.27,599.39,0.30615677]
[1745548208498,0.29004713,601.1,599.39,0.30615677]
[1745548208699,1.25428612,601.27,599.39,0.30615677]
[1745548209403,0.290029,601.26,599.39,0.30615677]
[1745548210705,1.25428612,601.18,599.4,1.05852008]
[1745548210905,1.25428612,601.18,599.41,0.30615677]
[1745548211404,1.25428612,601.18,599.42,0.3061597]
[1745548211705,0.29003746,601.17,599.43,0.3061597]
[1745548211999,0.29003746,601.17,599.44,0.3061597]
[1745548212203,0.29003746,601.17,599.4,1.05852008]
[1745548212204,0.29003746,601.17,599.41,0.3061597]
[1745548212400,0.29003746,601.17,599.4,1.05852008]
[1745548214000,1.25428612,601.18,599.4,1.05852008]
[1745548214404,0.29011121,601.17,599.38,1.536]
[1745548214601,0.29011121,601.17,599.39,0.30619451]
[1745548214802,1.25428612,601.22,599.39,0.30619451]
[1745548215605,0.29006406,601.21,599.39,0.30619451]
[1745548216105,0.29006406,601.21,599.4,1.345]
[1745548216305,0.29006406,601.21,599.41,0.30619451]
[1745548216706,1.25428612,601.18,599.41,0.30619451]
[1745548216900,1.25428612,601.18,599.41,1.87419451]
[1745548217105,1.25428612,601.18,599.41,1.568]
[1745548219309,1.25428612,601.18,599.41,2.818]
[1745548220611,0.29006406,601.21,599.41,2.818]
[1745548221712,0.29006406,601.21,598.93,1.05852008]
[1745548222113,0.29006406,601.21,598.94,0.30626973]
[1745548222312,0.29006406,601.21,598.95,0.30623541]
[1745548222508,0.29006406,601.21,598.96,0.30623541]
[1745548222712,0.29006406,601.21,598.97,0.30623541]
[1745548222913,0.29006406,601.21,598.98,0.30623541]
[1745548223208,0.29006406,601.21,598.99,0.30623541]
[1745548223417,0.29006406,601.21,599.0,0.30623541]
[1745548223714,0.29006406,601.21,599.01,0.30623541]
[1745548223914,0.29006406,601.21,599.02,0.30624766]
[1745548224117,0.29006406,601.21,599.03,0.30624766]
[1745548224416,0.29006406,601.21,599.04,0.30624766]
[1745548224612,0.29006406,601.21,599.05,0.30624766]
[1745548224917,0.29006406,601.21,599.06,0.30624766]
[1745548225110,0.29006406,601.21,599.07,0.30624766]
[1745548225310,0.29006406,601.21,598.96,0.29007856]
[1745548225311,1.25428612,600.99,599.2,1.05852008]
[1745548225514,1.25428612,600.99,599.21,0.30622118]
[1745548226318,0.2901233,600.98,599.21,0.30622118]
[1745548227416,0.2901233,600.98,599.08,1.05852008]
[1745548227417,0.2901233,600.98,599.09,0.30622118]
[1745548229117,1.25428612,601.2,599.09,0.30622118]
[1745548229318,0.29011242,600.97,599.09,0.30622118]
[1745548229721,1.25428612,601.2,599.09,0.30622118]
[1745548230921,0.29011242,601.19,599.09,0.30622118]
[1745548231319,0.29011242,601.19,599.1,0.30622118]
[1745548231519,0.29011242,601.19,599.11,0.30622118]
[1745548231719,0.29011242,601.19,599.12,0.30622758]
[1745548231919,0.29011242,601.19,599.13,0.30622758]
[1745548232120,0.29011242,601.19,599.08,1.05852008]
[1745548232121,1.25428612,601.2,599.14,0.30622758]
[1745548232315,1.25428612,601.2,599.09,0.30622758]
[1745548232519,0.29011242,601.18,599.1,0.30622758]
[1745548232720,0.29011242,601.18,599.11,0.30622758]
[1745548232922,0.29011242,601.18,599.12,0.30622758]
[1745548233123,0.29011242,601.18,599.13,0.30622758]
[1745548233320,1.25428612,601.15,599.11,1.05852008]
[1745548233524,1.25428612,601.15,599.12,0.30622758]
[1745548233823,1.25428612,601.15,599.13,0.30622758]
[1745548234122,1.25428612,601.15,599.11,1.05852008]
[1745548234123,1.25428612,601.15,599.14,0.30622758]
[1745548234322,1.25428612,601.15,599.12,0.30622758]
[1745548234522,1.25428612,601.15,599.13,0.30622758]
[1745548234724,1.25428612,601.15,599.11,1.05852008]
[1745548234923,1.25428612,601.15,599.12,0.30623221]
[1745548235124,1.25428612,601.15,599.13,0.30623221]
[1745548235325,1.25428612,601.15,598.77,1.05852008]
[1745548235326,1.25428612,601.03,599.19,1.05852008]
[1745548235522,1.25428612,601.03,599.2,0.30623221]
[1745548236422,1.25428612,601.03,599.19,1.05852008]
[1745548236623,1.25428612,601.03,599.2,0.30622579]
[1745548237824,1.25428612,601.03,599.22,1.05852008]
[1745548238224,1.25428612,601.03,599.23,0.30622579]
[1745548238423,0.29011363,601.02,599.23,0.30622579]
[1745548239527,0.29011363,601.02,599.22,1.05852008]
[1745548239827,0.29011363,601.02,599.23,0.30623089]
[1745548240326,0.29011363,601.02,599.24,0.30623089]
[1745548240526,0.29011363,601.02,599.12,0.30623089]
[1745548241122,0.29011363,601.02,599.11,1.05852008]
[1745548241320,0.29011363,601.02,599.12,0.30627567]
[1745548242626,0.29011363,601.02,599.13,0.30627567]
[1745548242823,0.29011363,601.02,598.96,0.30627567]
[1745548243026,0.29011363,601.02,598.97,0.30627567]
[1745548243229,0.29011363,601.02,598.96,0.30627567]
[1745548244129,1.25428612,601.26,598.96,0.30627567]
[1745548244327,1.25428612,601.26,598.97,0.30628495]
[1745548244527,0.29015233,601.01,598.96,1.36480503]
[1745548244724,1.25428612,601.27,598.97,0.30628495]
[1745548246430,0.29014991,601.26,598.97,0.30628495]
[1745548247132,1.25428612,601.09,599.03,1.05852008]
[1745548247330,1.25428612,601.09,599.04,0.30628495]
[1745548248737,1.25428612,601.12,599.04,1.36480503]
[1745548248937,1.25428612,601.12,599.04,1.05852008]
[1745548249136,1.25428612,601.12,599.05,0.30627255]
[1745548250539,0.29015838,601.11,599.05,0.30627255]
[1745548251936,0.29015838,601.11,599.05,1.36479263]
[1745548252241,0.29015838,601.11,599.06,0.30627255]
[1745548253140,1.25428612,601.12,599.06,0.30627255]
[1745548253337,0.29015475,601.1,599.06,0.30627255]
[1745548255239,0.29015475,601.1,599.05,1.05852008]
[1745548255444,0.29015475,601.1,599.06,0.30627631]
[1745548255839,0.29015475,601.1,598.96,0.30627631]
[1745548256139,1.25428612,601.34,598.97,0.30627631]
[1745548256339,1.25428612,601.34,598.98,0.30627631]
[1745548256543,0.29014023,601.09,598.96,0.30627631]
[1745548256744,1.25428612,601.34,598.95,1.05852008]
[1745548256950,1.25428612,601.34,598.96,0.30627607]
[1745548257243,1.25428612,601.34,598.97,1.207]
[1745548257445,0.29014023,601.33,598.98,0.30627607]
[1745548257939,1.25428612,601.17,599.0,1.05852008]
[1745548258146,1.25428612,601.17,599.01,0.30627607]
[1745548259440,0.29015475,601.16,599.01,0.30627607]
[1745548259644,0.29015475,601.16,599.0,0.30627607]
[1745548260846,0.29015475,601.16,599.02,1.0596617]
[1745548261044,0.29015475,601.16,599.03,0.30627607]
[1745548261345,0.29015475,601.16,599.04,0.30627701]
[1745548261539,0.29015475,601.16,599.05,0.30627701]
[1745548261740,0.29015475,601.16,599.03,0.30627701]
[1745548261940,0.29015475,601.16,599.04,0.30627701]
[1745548262144,0.29015475,601.16,599.03,0.30627701]
[1745548262444,0.29015475,601.16,599.04,0.30627701]
[1745548262744,0.29015475,601.16,599.05,0.30627701]
[1745548262944,0.29015475,601.16,599.03,0.30627701]
[1745548263246,1.25759526,601.09,599.1,1.0596617]
[1745548263446,1.25759526,601.09,599.11,0.30627701]
[1745548264045,1.25759526,601.09,599.1,1.0596617]
[1745548264247,1.25759526,601.09,599.11,0.3062472]
[1745548265441,0.29013782,601.08,599.11,0.3062472]
[1745548265642,0.29013782,601.08,599.1,1.0596617]
[1745548265847,0.29013782,601.08,599.11,0.30624874]
[1745548266448,1.25759526,601.02,599.17,1.0596617]
[1745548266745,1.25759526,601.02,599.18,0.30624874]
[1745548267141,1.25759526,601.02,599.17,1.0596617]
[1745548269350,0.29013782,601.08,598.99,1.056]
[1745548269547,0.29013782,601.08,599.0,0.30629361]
[1745548269746,0.29013782,601.08,599.01,0.30629361]
[1745548269947,0.29013782,601.08,599.02,0.30629361]
[1745548270148,0.29013782,601.08,599.03,0.30629361]
[1745548270349,0.29013782,601.08,599.0,0.30629361]
[1745548270549,0.29013782,601.08,599.01,0.30629361]
[1745548270845,0.29013782,601.08,598.99,1.056]
[1745548271250,1.25759526,601.86,598.99,1.056]
[1745548271651,0.29007977,601.07,599.0,0.30630098]
[1745548271850,1.25759526,601.86,599.0,0.30630098]
[1745548272451,1.25759526,600.82,599.15,1.0596617]
[1745548272647,1.25759526,600.82,599.16,0.30630098]
[1745548273354,0.29016443,600.81,599.16,0.30630098]
[1745548274053,1.25759526,600.82,599.16,0.30630098]
[1745548274253,0.29016443,600.8,599.16,0.30630098]
[1745548275453,0.29016443,600.8,599.17,0.30630098]
[1745548275659,0.29016443,600.8,599.06,0.30630098]
[1745548275855,0.29016443,600.8,599.07,0.30630098]
[1745548276056,0.29016443,600.8,599.08,0.30630098]
[1745548276258,0.29016443,600.8,599.06,0.30630098]
[1745548276458,0.29016443,600.8,599.05,1.07]
[1745548276650,0.29016443,600.8,599.06,0.30624934]
[1745548277158,1.25759526,601.27,599.06,0.30624934]
[1745548277453,0.29012209,600.79,599.06,0.30624934]
[1745548277655,1.25759526,601.27,599.06,0.30624934]
[1745548277860,1.25759526,601.28,599.08,1.0596617]
[1745548278052,1.25759526,601.28,599.09,0.30624934]
[1745548278555,0.29010758,601.27,599.09,0.30624934]
[1745548278755,0.29010758,601.27,599.1,1.521]
[1745548278956,0.29010758,601.27,599.11,0.30624934]
[1745548279659,0.29010758,601.27,599.12,0.30623092]
[1745548279860,0.29010758,601.27,599.11,0.30623092]
[1745548280060,1.25759526,601.28,599.11,0.30623092]
[1745548280457,0.29010516,601.26,599.11,0.30623092]
[1745548280658,1.25759526,601.07,599.19,1.0596617]
[1745548280959,1.25759526,601.07,599.2,0.30623092]
[1745548282562,1.25759526,601.07,599.19,1.0596617]
[1745548282862,1.15723548,601.06,599.2,0.30623402]
[1745548283062,1.15723548,601.05,599.2,0.30623402]
[1745548283256,1.25759526,600.99,599.22,1.0596617]
[1745548283457,1.25759526,600.99,599.23,0.30623402]
[1745548283657,1.15723548,600.98,599.23,0.30623402]
[1745548284061,1.15723548,600.97,599.23,0.30623402]
[1745548284461,1.15723548,600.96,599.23,0.30623402]
[1745548284662,1.15723548,600.95,599.23,0.30623402]
[1745548285061,1.15723548,600.94,599.23,0.30623402]
[1745548285663,1.15723548,600.93,599.23,0.30623402]
[1745548285961,1.25759526,600.99,599.23,0.30623402]
[1745548285962,1.15723548,600.92,599.23,0.30623402]
[1745548286362,0.29013419,600.91,599.14,0.30623402]
[1745548286564,1.15723548,600.9,599.15,0.30623402]
[1745548286864,1.15723548,600.9,599.16,0.30623402]
[1745548287064,1.15723548,600.9,599.14,0.30623402]
[1745548287265,1.15723548,600.89,599.14,0.30623402]
[1745548287865,1.15723548,600.88,599.14,0.30623402]
[1745548288365,0.29013419,600.91,599.14,0.30623402]
[1745548288366,1.15723548,600.87,599.14,0.30623402]
[1745548288566,1.15723548,600.86,599.14,0.30623402]
[1745548289567,1.15723548,600.85,599.14,0.30623402]
[1745548289768,1.15723548,600.85,599.15,1.456]
[1745548289967,1.15723548,600.85,599.16,0.30623402]
[1745548290463,0.29015112,600.84,599.16,0.30623402]
[1745548290665,1.4473866,600.84,599.16,0.30623402]
[1745548291368,1.15723548,600.83,599.16,0.30623402]
[1745548291771,1.15723548,600.82,599.16,0.30623402]
[1745548292471,1.44739023,600.81,599.16,0.30623402]
[1745548293066,1.15723548,600.8,599.16,0.30623402]
[1745548293472,1.15723548,600.79,599.17,0.3062341]
[1745548293673,1.15723548,600.78,599.17,0.3062341]
[1745548294073,1.15723548,600.77,599.17,0.3062341]
[1745548294473,1.15723548,600.76,599.17,0.3062341]
[1745548294772,1.15723548,600.75,599.17,0.3062341]
[1745548294973,1.15723548,600.75,599.16,1.0596617]
[1745548295169,1.15723548,600.74,599.17,0.30623149]
[1745548295469,1.15723548,600.73,599.17,0.30623149]
[1745548295675,1.15723548,600.73,599.28,1.0596617]
[1745548295875,1.15723548,600.72,599.29,0.30623149]
[1745548296374,1.15723548,600.72,599.29,1.60723149]
[1745548296575,1.15723548,600.71,599.3,0.30623149]
[1745548297174,1.15723548,600.7,599.3,0.30623149]
[1745548297977,1.15723548,600.7,599.3,1.62823149]
[1745548298178,1.15723548,600.69,599.3,1.322]
[1745548298475,1.15723548,600.68,599.3,1.322]
[1745548298681,1.15723548,600.67,599.3,1.322]
[1745548298880,1.15723548,600.66,599.3,1.322]
[1745548299581,1.15723548,600.65,599.3,1.322]
[1745548300283,1.15723548,600.64,599.3,1.322]
[1745548300582,1.15723548,600.63,599.3,1.322]
[1745548300877,1.15723548,600.62,599.3,1.322]
[1745548301281,1.15723548,600.61,599.3,1.322]
[1745548301682,1.15723548,600.6,599.3,1.322]
[1745548302381,1.15723548,600.59,599.3,1.322]
[1745548302782,1.15723548,600.58,599.3,1.322]
[1745548303184,1.15723548,600.57,599.3,1.322]
[1745548303783,1.15723548,600.56,599.3,1.322]
[1745548304383,1.15723548,600.55,599.3,1.322]
[1745548304783,1.15723548,600.54,599.3,1.322]
[1745548305284,1.15723548,600.53,599.3,1.322]
[1745548305584,1.15723548,600.52,599.3,1.322]
[1745548306085,1.15723548,600.51,599.3,1.322]
[1745548306485,1.15723548,600.5,599.3,1.322]
[1745548307279,1.15723548,600.49,599.3,1.322]
[1745548307480,1.15723548,600.48,599.3,1.322]
[1745548307684,0.29018015,600.61,599.3,1.322]
[1745548307685,1.15723548,600.47,599.3,1.322]
[1745548307885,0.29018015,600.61,599.3,1.322]
[1745548307886,1.15723548,600.46,599.3,1.322]
[1745548308188,1.15723548,600.45,599.3,1.322]
[1745548308582,1.15723548,600.44,599.3,1.322]
[1745548308886,1.15723548,600.43,599.3,1.322]
[1745548309486,1.15723548,600.42,599.3,1.322]
[1745548309787,1.15723548,600.41,599.3,1.322]
[1745548310289,1.15723548,600.4,599.3,1.322]
[1745548310689,1.15723548,600.39,599.3,1.322]
[1745548311488,1.15723548,600.38,599.3,1.322]
[1745548312089,1.15723548,600.37,599.31,0.30623508]
[1745548312394,1.15723548,600.36,599.31,0.30623508]
[1745548312789,1.15723548,600.35,599.31,0.30623508]
[1745548313295,1.15723548,600.34,599.31,0.30623508]
[1745548313494,0.2901983,600.61,599.31,0.30623508]
[1745548313495,1.15723548,600.33,599.31,0.30623508]
[1745548313688,1.15723548,600.33,599.31,1.43423508]
[1745548313889,1.15723548,600.33,599.32,0.30618187]
[1745548314495,1.15723548,600.32,599.32,0.30618187]
[1745548314895,1.15723548,600.31,599.32,0.30618187]
[1745548315895,1.15723548,600.3,599.33,0.30618187]
[1745548316094,1.15723548,600.3,599.34,0.30618187]
[1745548316296,1.15723548,600.3,599.35,0.30618187]
[1745548316495,1.15723548,600.29,599.36,0.30618187]
[1745548316689,1.15723548,600.29,599.32,0.30618187]
[1745548316894,1.15723548,600.28,599.33,0.30618187]
[1745548317090,1.15723548,600.28,599.34,0.30618187]
[1745548317394,1.15723548,600.27,599.35,0.30618187]
[1745548317589,1.15723548,600.27,599.32,0.30618187]
[1745548317793,1.15723548,600.27,599.33,0.30618187]
[1745548317989,1.15723548,600.27,599.31,1.128]
[1745548318195,1.15723548,600.26,599.43,1.0596617]
[1745548318395,1.15723548,600.26,599.44,0.30608848]
[1745548318595,1.15723548,600.25,599.44,0.30608848]
[1745548319097,1.15723548,600.24,599.44,0.30608848]
[1745548319597,1.15723548,600.23,599.43,1.0596617]
[1745548319794,1.15723548,600.23,599.44,0.30608468]
[1745548320098,1.15723548,600.22,599.44,0.30608468]
[1745548320702,1.15723548,600.21,599.45,0.30608468]
[1745548320898,1.15723548,600.21,599.32,0.30608468]
[1745548321098,1.15723548,600.2,599.33,0.30608468]
[1745548321298,1.15723548,600.2,599.34,0.30608468]
[1745548321498,1.15723548,600.2,599.33,0.98]
[1745548321794,1.15723548,600.2,599.34,0.30608468]
[1745548322094,1.15723548,600.2,599.33,0.98]
[1745548322300,1.15723548,600.19,599.34,0.30608454]
[1745548322898,1.15723548,600.18,599.34,0.30608454]
[1745548323400,1.15723548,600.17,599.34,0.30608454]
[1745548323701,1.15723548,600.16,599.34,0.30608454]
[1745548324098,1.15723548,600.15,599.34,0.30608454]
[1745548324897,1.15723548,600.14,599.34,0.30608454]
[1745548325797,1.15723548,600.13,599.34,0.30608454]
[1745548326100,1.15723548,600.12,599.34,0.30608454]
[1745548326899,1.15723548,600.11,599.33,0.98]
[1745548327201,1.15723548,600.11,599.34,0.30607903]
[1745548327702,1.25759526,601.76,599.34,0.30607903]
[1745548327703,1.15723548,600.1,599.34,0.30607903]
[1745548328100,1.15723548,600.09,599.33,0.98]
[1745548328600,1.15723548,600.08,599.34,0.30620328]
[1745548328797,1.15723548,600.07,599.34,0.30620328]
[1745548328997,1.15723548,600.06,599.34,0.30620328]
[1745548329302,1.15723548,600.05,599.34,0.30620328]
[1745548329806,1.15723548,600.04,599.34,0.30620328]
[1745548330300,1.15723548,600.03,599.34,0.30620328]
[1745548330701,1.15723548,600.02,599.34,0.30620328]
[1745548331002,1.15723548,600.01,599.34,0.30620328]
[1745548331395,1.15723548,600.0,599.34,0.30620328]
[1745548332198,1.15723548,599.99,599.34,0.30620328]
[1745548332402,1.15723548,599.98,599.34,0.30620328]
[1745548332801,1.15723548,599.97,599.34,0.30620328]
[1745548333103,1.15723548,599.96,599.33,0.98]
[1745548333304,1.15723548,599.96,599.34,0.30614064]
[1745548333602,1.15723548,599.95,599.34,0.30614064]
[1745548333902,1.15723548,599.94,599.34,0.30614064]
[1745548334398,1.15723548,599.93,599.34,0.30614064]
[1745548334802,1.15723548,599.92,599.34,0.30614064]
[1745548335002,1.15723548,599.91,599.34,0.30614064]
[1745548335304,1.15723548,599.9,599.34,0.30614064]
[1745548335799,1.15723548,599.89,599.34,0.30614064]
[1745548336004,1.15723548,599.88,599.34,0.30614064]
[1745548336806,1.25759526,601.67,599.34,0.30614064]
[1745548337007,1.15267661,601.66,599.34,0.30614064]
[1745548337401,1.44265365,601.66,599.34,0.30614064]
[1745548337602,1.15267661,601.65,599.34,0.30614064]
[1745548337805,1.25759526,601.64,599.34,0.30614064]
[1745548338310,1.15267661,601.63,599.34,0.30614064]
[1745548339109,1.15267661,601.62,599.34,0.30614064]
[1745548339306,1.15267661,601.61,599.34,0.30614064]
[1745548339802,1.15267661,601.6,599.34,0.30614064]
[1745548340310,1.15267661,601.59,599.34,0.30614064]
[1745548340609,1.44264278,601.59,599.34,0.30614064]
[1745548340809,1.15267661,601.58,599.34,0.30614064]
[1745548341010,1.15267661,601.57,599.34,0.30614064]
[1745548341910,1.15267661,601.56,599.34,0.30614064]
[1745548342513,1.15267661,601.55,599.34,0.30614064]
[1745548342811,1.15267661,601.55,599.35,1.467]
[1745548343110,1.15267661,601.54,599.36,0.30614064]
[1745548343615,1.15267661,601.53,599.36,0.30614064]
[1745548344016,1.15267661,601.53,599.35,1.467]
[1745548344310,1.15267661,601.52,599.36,0.3060855]